bitfinex/quotes_SOLUSD_20250917
["timestamp","ask_amount","ask_price","bid_price","bid_amount"]
[1758143141741,1.09888325,236.41,236.28,14.02559401]
[1758143142061,1.09888325,236.41,236.35,8.08313325]
[1758143142566,1.09888325,236.41,236.36,4.23083432]
[1758143142761,0.68,236.4,236.36,4.23083432]
[1758143143061,1.09888325,236.39,236.36,4.23083432]
[1758143143434,0.41888325,236.41,236.37,8.08313325]
[1758143143635,0.41888325,236.41,236.38,8.08313325]
[1758143143848,0.41888325,236.41,236.39,8.08313325]
[1758143144063,0.41888325,236.41,236.4,8.08313325]
[1758143144244,0.41888325,236.46,236.4,8.08313325]
[1758143144763,0.41888325,236.53,236.45,8.08313325]
[1758143145074,0.41888325,236.52,236.51,8.08313325]
[1758143145239,8.76313325,236.52,236.44,8.08313325]
[1758143145439,26.0,236.59,236.41,14.80478828]
[1758143145440,8.08313325,236.49,236.43,8.08313325]
[1758143145656,0.41888325,236.48,236.43,8.08313325]
[1758143145972,0.68,236.51,236.45,8.08313325]
[1758143146178,0.41888325,236.5,236.48,8.08313325]
[1758143146344,0.41888325,236.54,236.49,8.08313325]
[1758143146544,0.41888325,236.54,236.5,12.31130555]
[1758143146545,0.68,236.53,236.5,12.31130555]
[1758143146753,9.1820165,236.57,236.5,12.31130555]
[1758143146958,9.1820165,236.57,236.5,22.88213007]
[1758143147370,1.09888325,236.57,236.51,8.08313325]
[1758143148074,8.76313325,236.56,236.5,14.79899682]
[1758143148240,0.41888325,236.55,236.5,22.88213007]
[1758143148443,8.08313325,236.53,236.5,4.2281723]
[1758143148642,8.08313325,236.51,236.47,14.80099564]
[1758143148973,0.68,236.5,236.47,14.80099564]
[1758143149159,0.41888325,236.58,236.47,14.80099564]
[1758143149160,8.08313325,236.53,236.47,14.80099564]
[1758143149360,0.41888325,236.52,236.47,14.80099564]
[1758143149546,0.68,236.51,236.4,0.43]
[1758143149740,8.5020165,236.5,236.43,8.08313325]
[1758143149938,8.5020165,236.5,236.44,8.08313325]
[1758143150141,0.41888325,236.57,236.49,8.08313325]
[1758143150343,0.41888325,236.57,236.4,0.42301184]
[1758143150344,0.41888325,236.57,236.53,8.08313325]
[1758143150670,0.41888325,236.57,236.4,0.42301184]
[1758143150671,8.08313325,236.54,236.45,4.22922393]
[1758143150843,8.08313325,236.49,236.45,4.22922393]
[1758143151180,8.08313325,236.5,236.45,4.22922393]
[1758143151352,0.41888325,236.49,236.45,4.22922393]
[1758143151681,9.1820165,236.51,236.45,14.80228377]
[1758143151884,0.68,236.56,236.5,8.08313325]
[1758143152063,0.41888325,236.55,236.46,0.43]
[1758143152252,8.08313325,236.54,236.46,8.08313325]
[1758143152457,0.41888325,236.53,236.46,8.08313325]
[1758143152757,0.41888325,236.55,236.5,8.08313325]
[1758143152952,0.41888325,236.55,236.46,0.43]
[1758143153258,0.41888325,236.55,236.5,8.08313325]
[1758143153452,0.41888325,236.56,236.51,8.08313325]
[1758143153652,1.09888325,236.56,236.51,8.08313325]
[1758143153875,1.09888325,236.56,236.51,5.14131709]
[1758143154457,1.09888325,236.56,236.5,5.14131709]
[1758143154850,0.41888325,236.56,236.51,19.93984568]
[1758143155054,5.56020034,236.58,236.52,5.14131709]
[1758143155483,5.56020034,236.58,236.51,14.79852859]
[1758143155484,0.41888325,236.58,236.55,5.14131709]
[1758143155691,10.76209059,236.7,236.57,5.14131709]
[1758143155692,0.68,236.66,236.57,5.14131709]
[1758143155973,0.68,236.66,236.56,0.43]
[1758143155974,0.41888325,236.65,236.6,5.14131709]
[1758143156180,1.09888325,236.65,236.6,5.14131709]
[1758143156359,1.09888325,236.65,236.59,5.14131709]
[1758143156552,6.24020034,236.65,236.59,5.14131709]
[1758143156753,1.09888325,236.65,236.59,5.14131709]
[1758143157059,1.09888325,236.65,236.6,4.22654268]
[1758143157259,1.09888325,236.65,236.6,14.7928994]
[1758143157491,5.56020034,236.66,236.6,14.7928994]
[1758143157980,0.68,236.65,236.58,4.22673122]
[1758143158192,5.14131709,236.59,236.41,0.43]
[1758143158362,5.14131709,236.6,236.41,0.43]
[1758143158363,5.14131709,236.48,236.41,0.43]
[1758143158566,5.14131709,236.49,236.42,5.14131709]
[1758143159065,0.41888325,236.51,236.43,19.94485301]
[1758143159272,0.41888325,236.51,236.43,14.80353592]
[1758143159484,5.14131709,236.48,236.43,14.80353592]
[1758143159979,0.41888325,236.51,236.43,14.80353592]
[1758143160179,5.14131709,236.46,236.43,14.80353592]
[1758143160690,0.41888325,236.55,236.44,5.57131709]
[1758143160997,5.56020034,236.57,236.48,14.80040594]
[1758143161575,0.41888325,236.57,236.48,15.23040594]
[1758143161774,0.69,236.63,236.51,5.14131709]
[1758143161988,5.14131709,236.53,236.48,14.80040594]
[1758143162370,5.14131709,236.54,236.48,15.23040594]
[1758143162991,5.14131709,236.61,236.51,5.14131709]
[1758143163297,0.5,236.55,236.53,5.14131709]
[1758143163470,0.5,236.55,236.53,5.57131709]
[1758143164269,5.14131709,236.61,236.53,0.43]
[1758143164578,5.14131709,236.56,236.49,0.43]
[1758143164997,5.14131709,236.56,236.5,14.79915432]
[1758143165874,5.14131709,236.54,236.5,4.2283298]
[1758143166591,26.26352947,236.72,236.51,0.43]
[1758143166592,3.12520994,236.64,236.51,0.43]
[1758143166772,5.14131709,236.6,236.51,5.57131709]
[1758143167168,5.14131709,236.65,236.52,15.22790292]
[1758143167374,5.14131709,236.65,236.55,5.14131709]
[1758143167375,5.56020034,236.65,236.55,5.14131709]
[1758143167566,5.14131709,236.61,236.53,5.57131709]
[1758143167766,0.41888325,236.63,236.53,5.57131709]
[1758143167993,1.08888325,236.68,236.58,5.14131709]
[1758143168172,5.14131709,236.67,236.58,5.14131709]
[1758143168496,5.56020034,236.66,236.59,5.14131709]
[1758143168675,0.41888325,236.66,236.58,5.14131709]
[1758143168877,0.41888325,236.66,236.56,0.43]
[1758143169093,5.56020034,236.66,236.59,4.22672133]
[1758143169275,0.41888325,236.66,236.59,4.22672133]
[1758143169597,5.14131709,236.65,236.59,4.22672133]
[1758143169773,5.56020034,236.64,236.57,9.36822354]
[1758143170189,0.41888325,236.64,236.57,9.36822354]
[1758143170372,5.14131709,236.64,236.57,9.36822354]
[1758143170570,6.23020034,236.65,236.57,9.36822354]
[1758143171001,6.23020034,236.65,236.57,19.9359202]
[1758143171192,5.14131709,236.66,236.59,5.14131709]
[1758143171369,5.14131709,236.67,236.59,5.14131709]
[1758143171578,5.14131709,236.67,236.57,15.22460311]
[1758143171579,5.76020034,236.7,236.63,5.14131709]
[1758143171793,0.61888325,236.7,236.64,5.14131709]
[1758143172178,0.2,236.7,236.63,5.14131709]
[1758143172698,0.2,236.7,236.64,5.14131709]
[1758143172999,0.2,236.7,236.65,5.14131709]
[1758143173168,0.2,236.7,236.67,4.2252926]
[1758143175096,0.2,236.7,236.67,14.7885241]
[1758143175497,0.2,236.7,236.67,19.92984119]
[1758143175687,0.2,236.7,236.69,5.14131709]
[1758143176080,0.2,236.7,236.69,5.57131709]
[1758143176901,0.2,236.7,236.69,5.14131709]
[1758143177078,0.2,236.7,236.68,5.14131709]
[1758143177280,0.2,236.7,236.67,5.14131709]
[1758143178001,0.2,236.7,236.69,5.14131709]
[1758143178202,1.08888325,236.8,236.69,5.14131709]
[1758143178203,5.81131709,236.8,236.69,18.7369111]
[1758143178502,0.41888325,236.83,236.69,18.7369111]
[1758143178503,6.23020034,236.83,236.75,5.14131709]
[1758143178685,5.81131709,236.83,236.72,0.43]
[1758143179005,0.67,236.83,236.75,5.14131709]
[1758143179194,5.14131709,236.82,236.75,5.14131709]
[1758143179394,5.14131709,236.82,236.76,4.22368643]
[1758143179598,5.14131709,236.77,236.71,10.56130578]
[1758143179994,5.14131709,236.78,236.71,15.70262287]
[1758143180200,5.81131709,236.81,236.74,5.14131709]
[1758143180381,0.67,236.81,236.75,5.14131709]
[1758143180788,5.14131709,236.83,236.76,5.14131709]
[1758143181202,5.14131709,236.84,236.78,5.14131709]
[1758143181399,5.87131709,236.85,236.79,9.3644684]
[1758143181598,0.06,236.85,236.81,5.14131709]
[1758143181788,0.06,236.85,236.82,5.14131709]
[1758143182303,0.06,236.85,236.81,5.14131709]
[1758143182694,0.06,236.85,236.79,19.92234668]
[1758143182918,0.06,236.85,236.8,5.14131709]
[1758143183605,0.06,236.85,236.81,9.36411173]
[1758143184309,5.81131709,236.84,236.78,5.14131709]
[1758143184896,0.67,236.84,236.75,10.98934743]
[1758143185097,5.14131709,236.76,236.72,4.2243662]
[1758143185500,5.14131709,236.76,236.71,14.7860206]
[1758143185810,0.67,236.79,236.72,0.43]
[1758143186006,5.14131709,236.76,236.72,0.43]
[1758143186190,5.14131709,236.76,236.71,14.7860206]
[1758143186583,5.14131709,236.77,236.71,19.92733769]
[1758143186797,0.06,236.76,236.71,19.92733769]
[1758143187001,0.06,236.76,236.71,14.7860206]
[1758143187223,0.06,236.76,236.71,19.92733769]
[1758143187401,0.06,236.76,236.71,14.7860206]
[1758143187723,5.20131709,236.76,236.71,14.7860206]
[1758143187949,5.14131709,236.75,236.71,4.22457859]
[1758143188427,0.06,236.76,236.71,4.22457859]
[1758143188714,5.20131709,236.76,236.71,4.22457859]
[1758143188912,0.06,236.76,236.73,5.14131709]
[1758143189328,0.06,236.76,236.75,5.14131709]
[1758143189719,0.06,236.76,236.75,9.79518192]
[1758143189916,0.06,236.76,236.75,10.2175684]
[1758143190114,1e-08,236.76,236.75,10.2175684]
[1758143190321,1e-08,236.76,236.75,23.81316241]
[1758143190828,1e-08,236.76,236.75,19.58929758]
[1758143191023,1e-08,236.76,236.75,23.81316241]
[1758143191230,1e-08,236.79,236.78,5.14131709]
[1758143191614,1e-08,236.79,236.78,9.79464676]
[1758143192030,1e-08,236.79,236.78,23.39024077]
[1758143194441,0.06,236.85,236.79,13.59559401]
[1758143194638,0.06,236.85,236.83,5.14131709]
[1758143194944,0.06,236.85,236.78,70.86830221]
[1758143194945,5.20131709,236.85,236.78,49.81165385]
[1758143195127,5.20131709,236.85,236.8,5.14131709]
[1758143195318,0.66,236.84,236.79,5.14131709]
[1758143195944,0.66,236.84,236.8,5.14131709]
[1758143196128,0.66,236.84,236.79,5.14131709]
[1758143196444,0.66,236.83,236.78,4.22332967]
[1758143196644,0.66,236.82,236.78,4.22332967]
[1758143197229,1.16,236.82,236.78,4.22332967]
[1758143197851,1.16,236.82,236.77,10.55850257]
[1758143198053,5.14131709,236.8,236.75,4.22386483]
[1758143198345,5.80131709,236.79,236.75,4.22386483]
[1758143198749,0.5,236.82,236.75,4.22386483]
[1758143198750,5.14131709,236.77,236.75,4.22386483]
[1758143198937,5.80131709,236.76,236.71,5.14131709]
[1758143199344,5.80131709,236.76,236.71,19.92734217]
[1758143199551,5.14131709,236.78,236.72,5.14131709]
[1758143199753,5.14131709,236.78,236.73,5.14131709]
[1758143200056,5.14131709,236.78,236.74,4.22404325]
[1758143200230,0.66,236.78,236.74,4.22404325]
[1758143201158,0.66,236.78,236.71,10.56144649]
[1758143201346,0.66,236.84,236.76,5.14131709]
[1758143201551,0.06,236.85,236.8,5.14131709]
[1758143201739,0.06,236.85,236.84,5.14131709]
[1758143203158,0.06,236.85,236.84,5.57131709]
[1758143203335,0.06,236.85,236.84,10.21580281]
[1758143204367,0.06,236.85,236.84,9.78580281]
[1758143205039,0.06,236.85,236.84,4.22225975]
[1758143205660,0.06,236.85,236.82,15.69775988]
[1758143205661,0.06,236.85,236.83,4.22243803]
[1758143205846,0.06,236.85,236.83,9.36375512]
[1758143206359,0.06,236.85,236.84,5.14131709]
[1758143206652,0.06,236.88,236.84,19.1669111]
[1758143206852,0.06,236.88,236.84,13.59559401]
[1758143207053,0.06,236.88,236.87,5.14131709]
[1758143207441,0.06,236.88,236.85,14.77728519]
[1758143207641,0.06,236.88,236.87,5.14131709]
[1758143208474,0.72,236.88,236.86,0.42219032]
[1758143208636,0.66,236.87,236.83,4.22227466]
[1758143208962,0.66,236.86,236.83,4.22227466]
[1758143209371,0.66,236.85,236.79,13.59559401]
[1758143209539,5.80131709,236.84,236.79,4.22315131]
[1758143209738,0.66,236.87,236.8,5.14131709]
[1758143209936,5.14131709,236.86,236.79,19.92234668]
[1758143210157,5.80131709,236.86,236.79,19.92234668]
[1758143210549,0.66,236.85,236.79,19.92234668]
[1758143211855,0.66,236.85,236.8,5.14131709]
[1758143212051,5.86131709,236.88,236.8,5.14131709]
[1758143212247,0.66,236.87,236.81,5.14131709]
[1758143212465,0.06,236.88,236.86,5.14131709]
[1758143212774,0.06,236.88,236.87,5.14131709]
[1758143213139,0.06,236.88,236.87,0.42217249]
[1758143213334,0.06,236.88,236.87,5.14131709]
[1758143213752,0.06,236.88,236.87,9.36304208]
[1758143215764,0.06,236.88,236.87,12.69930296]
[1758143215939,0.06,236.88,236.87,12.26930296]
[1758143216367,0.06,236.88,236.87,12.69930296]
[1758143217251,0.06,236.89,236.87,12.9836261]
[1758143217462,0.06,236.92,236.91,21.64317198]
[1758143217661,0.06,236.92,236.91,56.30749512]
[1758143217980,0.06,236.92,236.91,56.73749512]
[1758143218468,0.06,236.92,236.91,60.95850731]
[1758143218847,1e-08,236.94,236.92,13.87991715]
[1758143219074,1e-08,236.94,236.93,22.06523756]
[1758143219254,1e-08,236.94,236.93,21.64317198]
[1758143219459,1e-08,236.94,236.93,48.01559401]
[1758143220149,1e-08,236.94,236.93,56.06317198]
[1758143220351,1e-08,236.94,236.93,60.28382786]
[1758143221368,1e-08,236.94,236.93,52.23624989]
[1758143221556,1e-08,236.94,236.93,60.28382786]
[1758143222671,0.69000001,236.94,236.93,34.42]
[1758143222864,0.69000001,236.94,236.89,17.81679638]
[1758143223173,0.69,236.93,236.89,38.58120237]
[1758143223349,0.69,236.92,236.89,38.58120237]
[1758143223857,1e-08,236.94,236.89,38.58120237]
[1758143223858,1e-08,236.94,236.89,46.62878034]
[1758143224069,0.69,236.93,236.89,46.62878034]
[1758143224378,0.69,236.92,236.89,46.62878034]
[1758143225049,0.69,236.92,236.89,38.58120237]
[1758143226369,0.06,236.93,236.85,0.03]
[1758143226576,0.06,236.93,236.88,8.04757797]
[1758143226749,0.06,236.93,236.89,8.04757797]
[1758143226750,0.75,236.93,236.89,8.04757797]
[1758143227169,0.06,236.93,236.92,8.04757797]
[1758143227565,0.06,236.93,236.91,8.04757797]
[1758143227853,0.75,236.93,236.9,8.04757797]
[1758143228048,0.06,236.93,236.89,42.34757797]
[1758143228277,0.69,236.92,236.88,34.3]
[1758143228573,0.69,236.92,236.85,8.07757797]
[1758143228574,0.69,236.91,236.85,8.07757797]
[1758143228760,8.04757797,236.88,236.85,0.03]
[1758143228958,8.73757797,236.87,236.85,0.03]
[1758143229358,0.69,236.86,236.85,0.03]
[1758143230576,8.73757797,236.86,236.85,0.03]
[1758143230758,12.9594812,236.86,236.85,0.03]
[1758143232365,0.69,236.86,236.85,0.03]
[1758143232572,0.69,236.89,236.85,0.03]
[1758143232781,0.69,236.89,236.85,8.07757797]
[1758143233471,12.268412,236.92,236.85,8.07757797]
[1758143233669,0.69,236.88,236.85,0.03]
[1758143234674,8.04757797,236.91,236.85,4.25208148]
[1758143234887,8.73757797,236.91,236.85,4.25208148]
[1758143235363,0.47888325,236.93,236.9,8.04757797]
[1758143235364,0.06,236.93,236.9,8.04757797]
[1758143235566,0.06,236.93,236.92,8.04757797]
[1758143235873,0.69,236.92,236.88,42.28757797]
[1758143236072,8.73757797,236.91,236.85,4.25208148]
[1758143236268,0.06,236.93,236.85,0.03]
[1758143236269,8.04757797,236.89,236.85,0.03]
[1758143236498,8.04757797,236.86,236.85,0.03]
[1758143236874,12.9594812,236.86,236.85,0.03]
[1758143240579,15.97195678,236.86,236.85,0.03]
[1758143240775,16.47195678,236.86,236.85,0.03]
[1758143241178,16.89084003,236.86,236.85,0.03]
[1758143242268,16.60651689,236.86,236.85,0.03]
[1758143242463,13.4594812,236.86,236.85,0.03]
[1758143242668,47.6594812,236.86,236.85,0.03]
[1758143244596,50.3868292,236.86,236.85,0.03]
[1758143245172,5.41190323,236.86,236.85,0.03]
[1758143245392,73.6194812,236.86,236.85,0.03]
[1758143247004,65.57190323,236.86,236.85,0.03]
[1758143247183,73.6194812,236.86,236.85,0.03]
[1758143248600,8.54757797,236.86,236.85,0.03]
[1758143248799,0.5,236.86,236.85,0.03]
[1758143249987,13.4594812,236.86,236.85,0.03]
[1758143250808,39.4594812,236.86,236.85,0.03]
[1758143252310,31.41190323,236.86,236.85,0.03]
[1758143252607,39.4594812,236.86,236.85,0.03]
[1758143252986,73.5594812,236.86,236.85,0.03]
[1758143253288,65.49190323,236.86,236.85,0.03]
[1758143253487,73.5394812,236.86,236.85,0.03]
[1758143254613,47.5394812,236.86,236.85,0.03]
[1758143254901,47.82380434,236.86,236.85,0.03]
[1758143255107,48.24268759,236.86,236.85,0.03]
[1758143255814,50.96482551,236.86,236.85,0.03]
[1758143259292,34.33190111,236.83,236.82,0.03]
[1758143259493,68.77078436,236.83,236.82,0.03]
[1758143259706,69.44078436,236.83,236.82,0.03]
[1758143260018,77.48836233,236.83,236.82,0.03]
[1758143261399,81.71080036,236.83,236.82,0.03]
[1758143261919,73.37889925,236.83,236.82,0.03]
[1758143263819,39.35889925,236.83,236.82,0.03]
[1758143264016,73.33889925,236.83,236.82,0.03]
[1758143264225,72.64889925,236.83,236.82,0.03]
[1758143264434,73.60322239,236.83,236.82,0.03]
[1758143265629,0.28432314,236.78,236.77,1e-08]
[1758143265927,49.65480257,236.78,236.77,1e-08]
[1758143266107,50.32480257,236.78,236.77,1e-08]
[1758143266993,47.60411403,236.78,236.77,1e-08]
[1758143267416,53.77116604,236.78,236.77,1e-08]
[1758143267607,50.32572018,236.78,236.77,1e-08]
[1758143268313,53.6769096,236.78,236.77,1e-08]
[1758143268726,13.59559401,236.76,236.64,0.43]
[1758143268917,56.00205523,236.76,236.64,0.43]
[1758143269225,59.39307389,236.76,236.64,0.43]
[1758143269600,59.39307389,236.76,236.65,0.43]
[1758143270020,63.61676032,236.76,236.65,0.43]
[1758143271219,63.61676032,236.76,236.6,10.56612946]
[1758143271528,50.30548945,236.76,236.68,0.43]
[1758143271913,50.30548945,236.76,236.63,4.22597061]
[1758143272138,50.30548945,236.76,236.66,0.43]
[1758143272723,0.28432314,236.72,236.62,0.43]
[1758143272927,8.04757797,236.7,236.62,0.43]
[1758143273231,10.76859663,236.7,236.62,0.43]
[1758143274429,14.9933537,236.7,236.62,0.43]
[1758143274623,14.9933537,236.7,236.61,4.22631076]
[1758143274830,14.9933537,236.7,236.63,0.43]
[1758143275635,15.6633537,236.7,236.63,0.43]
[1758143275935,6.94577573,236.7,236.66,0.43]
[1758143276135,41.92757797,236.7,236.69,0.46]
[1758143276939,33.88,236.7,236.69,0.46]
[1758143277237,41.92757797,236.7,236.69,0.46]
[1758143277823,39.01608744,236.7,236.69,0.46]
[1758143279021,39.01608744,236.7,236.69,0.03]
[1758143279543,43.24084451,236.7,236.69,0.03]
[1758143279838,39.01608744,236.7,236.69,0.03]
[1758143280040,39.43497069,236.7,236.69,0.03]
[1758143281116,39.01608744,236.7,236.69,0.03]
[1758143281342,0.41888325,236.75,236.69,5.59608744]
[1758143281640,33.84,236.81,236.74,5.13608744]
[1758143281843,38.97608744,236.81,236.75,0.43]
[1758143282023,39.03608744,236.81,236.75,0.43]
[1758143282338,5.19608744,236.81,236.75,0.43]
[1758143282544,39.03608744,236.81,236.76,4.22368643]
[1758143282714,33.9,236.81,236.77,0.43]
[1758143282921,33.9,236.81,236.78,0.43]
[1758143283122,33.9,236.81,236.79,0.43]
[1758143283322,33.9,236.81,236.8,0.43]
[1758143283526,0.06,236.81,236.8,0.43]
[1758143284238,5.19608744,236.81,236.77,0.43]
[1758143284549,0.06,236.81,236.78,0.43]
[1758143285042,0.06,236.81,236.79,0.43]
[1758143285218,0.06,236.83,236.8,5.55838473]
[1758143285418,0.06,236.83,236.82,5.13608744]
[1758143285818,0.41888325,236.91,236.83,13.59559401]
[1758143286021,0.06,236.93,236.9,5.13608744]
[1758143286418,0.06,236.93,236.91,0.31]
[1758143286644,0.06,236.93,236.91,4.53091155]
[1758143286945,0.06,236.93,236.92,5.44608744]
[1758143288944,0.06,236.93,236.9,5.13608744]
[1758143289248,0.06,236.93,236.89,4.53119943]
[1758143289542,0.06,236.93,236.87,9.35765123]
[1758143289923,0.06,236.93,236.87,4.22156379]
[1758143290452,5.19608744,236.93,236.87,4.22156379]
[1758143290618,0.06,236.93,236.87,4.22156379]
[1758143290822,0.06,236.93,236.83,10.55607473]
[1758143290823,5.13608744,236.91,236.83,15.69216217]
[1758143291023,5.13608744,236.91,236.84,4.53220709]
[1758143294236,10.05722035,236.91,236.84,4.22220709]
[1758143294629,5.83608744,236.91,236.84,4.22220709]
[1758143294843,5.83608744,236.91,236.84,9.35829453]
[1758143294844,5.13608744,236.91,236.84,9.35829453]
[1758143295156,5.13608744,236.91,236.84,4.22220709]
[1758143295449,5.13608744,236.9,236.84,4.22220709]
[1758143295756,5.13608744,236.87,236.77,0.31]
[1758143295936,26.0,236.88,236.82,5.13608744]
[1758143296143,1.11888325,236.89,236.82,9.35857813]
[1758143296144,5.34028756,236.89,236.82,9.35857813]
[1758143296751,10.476375,236.89,236.82,9.35857813]
[1758143297131,0.41888325,236.89,236.84,5.13608744]
[1758143297358,0.41888325,236.9,236.84,5.13608744]
[1758143298358,1.11888325,236.92,236.85,4.22208148]
[1758143298554,10.475822,236.92,236.85,9.35816892]
[1758143298854,10.475822,236.92,236.85,4.22208148]
[1758143299063,9.775822,236.92,236.84,5.13608744]
[1758143299264,5.13608744,236.88,236.81,5.13608744]
[1758143299634,5.83608744,236.87,236.8,9.35906041]
[1758143300125,10.0579402,236.87,236.8,9.35906041]
[1758143300332,5.83608744,236.87,236.8,9.35906041]
[1758143301563,0.06,236.9,236.82,5.13608744]
[1758143302450,0.06,236.9,236.83,4.22243803]
[1758143302849,0.06,236.9,236.86,5.13608744]
[1758143303758,0.06,236.9,236.85,5.13608744]
[1758143304464,0.76,236.9,236.85,9.35813953]
[1758143304649,0.76,236.9,236.78,9.66941711]
[1758143304650,5.13608744,236.86,236.78,9.66941711]
[1758143304966,5.83608744,236.86,236.78,4.53332967]
[1758143305145,5.83608744,236.86,236.78,9.66941711]
[1758143305466,5.83608744,236.86,236.78,20.22774129]
[1758143305467,0.7,236.86,236.78,20.22774129]
[1758143305762,5.13608744,236.87,236.79,5.13608744]
[1758143306139,5.13608744,236.87,236.79,5.44608744]
[1758143306540,5.13608744,236.87,236.8,4.22297297]
[1758143306947,0.7,236.86,236.8,4.22297297]
[1758143307169,5.83608744,236.86,236.8,4.22297297]
[1758143307669,5.13608744,236.84,236.78,4.22317875]
[1758143308045,5.83608744,236.85,236.78,4.22317875]
[1758143309359,6.25497069,236.85,236.78,4.22317875]
[1758143309555,10.05816982,236.85,236.78,4.22317875]
[1758143310954,5.13608744,236.81,236.76,4.22358148]
[1758143311162,5.83608744,236.81,236.76,4.22358148]
[1758143311651,0.7,236.81,236.76,4.22358148]
[1758143312667,0.68,236.84,236.77,2.11100387]
[1758143312870,0.68,236.84,236.76,15.09279756]
[1758143313081,1.09888325,236.87,236.82,2.11100387]
[1758143313260,0.41888325,236.87,236.82,2.11100387]
[1758143313568,0.68,236.86,236.82,2.11100387]
[1758143313963,0.68,236.86,236.81,2.11100387]
[1758143315572,0.68,236.86,236.82,4.22261633]
[1758143316753,0.68,236.86,236.8,5.12845829]
[1758143317366,0.41888325,236.88,236.81,0.31]
[1758143317565,0.06,236.9,236.87,5.12845829]
[1758143317758,0.06,236.9,236.89,5.12845829]
[1758143318675,0.06,236.9,236.89,9.34982685]
[1758143320483,0.06,236.9,236.83,10.55568593]
[1758143320776,0.74,236.9,236.84,4.22225975]
[1758143320952,0.74,236.9,236.84,9.35071804]
[1758143321363,0.74,236.9,236.84,19.90636742]
[1758143321563,0.74,236.9,236.84,14.77790913]
[1758143321868,0.74,236.9,236.84,19.90636742]
[1758143322269,0.74,236.9,236.85,5.12845829]
[1758143322461,0.06,236.9,236.88,5.12845829]
[1758143323584,0.06,236.9,236.85,9.35036182]
[1758143323770,0.68,236.89,236.85,4.22190353]
[1758143326370,0.68,236.89,236.83,15.68441032]
[1758143326575,0.06,236.9,236.84,5.12845829]
[1758143327370,0.06,236.9,236.86,5.12845829]
[1758143327668,0.06,236.9,236.87,5.12845829]
[1758143327875,0.06,236.9,236.89,5.12845829]
[1758143328186,0.06,236.9,236.89,5.43845829]
[1758143328488,0.06,236.9,236.89,9.65982685]
[1758143328872,0.06,236.93,236.92,5.12845829]
[1758143329384,0.06,236.93,236.92,5.43845829]
[1758143329768,0.06,236.93,236.92,9.34929232]
[1758143330084,0.06,236.93,236.9,4.22102402]
[1758143330085,0.74,236.93,236.9,4.22102402]
[1758143330488,0.68,236.92,236.88,4.221468]
[1758143330662,5.12845829,236.92,236.88,4.221468]
[1758143330860,5.80845829,236.91,236.88,4.221468]
[1758143331481,0.68,236.91,236.88,4.221468]
[1758143331860,0.68,236.91,236.86,14.77651239]
[1758143332065,0.68,236.91,236.86,19.90497068]
[1758143332466,0.68,236.91,236.86,14.77651239]
[1758143333192,0.68,236.91,236.86,19.90497068]
[1758143333494,5.18845829,236.93,236.87,5.12845829]
[1758143334087,5.18845829,236.93,236.88,4.22154677]
[1758143334290,5.86845829,236.93,236.88,4.22154677]
[1758143334587,0.68,236.92,236.88,4.22154677]
[1758143336480,5.80845829,236.92,236.86,15.68306745]
[1758143336883,5.80845829,236.92,236.86,10.55460916]
[1758143337396,5.80845829,236.92,236.86,15.68306745]
[1758143337779,0.74,236.92,236.86,18.60555805]
[1758143338776,0.06,236.92,236.87,8.05094889]
[1758143338972,0.06,236.92,236.9,8.05094889]
[1758143339175,0.06,236.92,236.91,8.05094889]
[1758143339779,0.06,236.92,236.9,41.77094889]
[1758143340087,0.06,236.92,236.91,8.05094889]
[1758143341076,0.06,236.92,236.91,12.27196108]
[1758143342105,0.06,236.92,236.91,4.22101219]
[1758143342494,0.06,236.92,236.91,12.27196108]
[1758143342792,0.76,236.92,236.87,37.94172499]
[1758143343198,0.76,236.92,236.87,48.49603748]
[1758143343374,0.76,236.92,236.88,8.05094889]
[1758143343579,0.06,236.92,236.88,8.05094889]
[1758143343796,0.76,236.92,236.88,8.05094889]
[1758143344094,0.06,236.92,236.88,8.05094889]
[1758143344301,0.76,236.92,236.88,8.05094889]
[1758143344767,0.76,236.92,236.89,4.22136856]
[1758143345169,0.06,236.92,236.89,4.22136856]